[Event "GER-ch Youth-U16 2022"]
[Site "Willingen"]
[Date "2022.06.10"]
[Round "8.1"]
[White "Lutsko, Artem"]
[Black "Foerster-Yialamas, Lucas"]
[Result "1/2-1/2"]
[ECO "D85"]
[WhiteElo "2392"]
[BlackElo "2117"]
[Annotator "TA"]
[PlyCount "115"]
[EventDate "2022.06.05"]
[EventType "swiss"]
[EventRounds "9"]
[EventCountry "GER"]
[SourceTitle "playchess.com"]
[Source "ChessBase"]
[SourceQuality "1"]
[TimeControl "40/4500+30:900+30"]

{[%evp 9,115,10,37,15,9,22,17,0,14,0,3,0,5,2,6,8,12,0,6,0,5,7,39,6,17,0,3,2,12,0,3,0,0,0,4,0,8,8,8,8,8,8,12,10,10,19,97,103,169,146,419,402,420,366,377,368,326,314,333,343,1070,1021,741,648,2079,1902,1921,1422,7864,5695,8766,12796,6095,6107,5708,5620,1673,754,1850,1789,2407,1690,2863,2363,5704,3120,29972,29973,29972,29973,29972,29974,29976,29971,29983,29984,29982,29983,29983,29983,29984,29985,29985,29984,29984,29981,29979,29975]} 1. d4 {[%emt 0:00:00]} Nf6 {[%emt 0:00:00]} 2. c4 {[%emt 0:00:00]} g6 {[%emt 0:00:00]} 3. Nc3 {[%emt 0:00:00]} d5 {[%emt 0:00:00]} 4. cxd5 {[%emt 0:00:00]} Nxd5 {[%emt 0:00:00]} 5. Bd2 {[%emt 0:00:00][%cal Bc1d2,Bd2c3,Bc3d4][%mdl 32]} c5 {[%emt 0:00:00]} 6. e4 {[%emt 0:00:00] D85: Exchange Grünfeld: Unusual White 7th moves and lines with 7 Nf3.} (6. dxc5 {is more complex.} Bg7 7. Qb3 Nxc3 8. Bxc3 e5 9. Nf3) 6... Nxc3 {[%emt 0:00:00]} 7. Bxc3 {[%emt 0:00:00]} cxd4 {[%emt 0:00:00]} 8. Qxd4 {[%emt 0:00:00] The position is equal.} (8. Bxd4 {is interesting.} e5 9. Bxe5 Bb4+ 10. Bc3) 8... Qxd4 {[%emt 0:00:00]} 9. Bxd4 {[%emt 0:00:00]} f6 {[%emt 0:00:00]} 10. Bc4 {[%emt 0:03:22]} e5 {[%emt 0:00:00]} 11. Be3 {[%emt 0:00:05] [#]} Bb4+ $146 {[%emt 0:00:00]} ({Predecessor:} 11... Bd7 12. O-O-O Bc6 13. Bd5 Nd7 14. Ne2 Rc8 15. Kb1 Bc5 16. Bxc5 Nxc5 17. Nc3 Ke7 18. Rd2 Rhd8 19. Rhd1 Bxd5 20. Nxd5+ Kf7 21. Nc3 Rxd2 22. Rxd2 Ke6 23. f3 {½-½ (23) Tukmakov,V (2600)-Khenkin,I (2570) Elenite 1993}) 12. Ke2 {[%emt 0:00:49]} Ke7 {[%emt 0:00:00]} 13. Nf3 {[%emt 0:03:55][%cal Bg1f3,Bf3d2,Bd2b3][%mdl 32]} Nc6 {[%emt 0:03:29]} 14. a3 {[%emt 0:04:39]} (14. Rhd1 {with more complications.} Bd6 15. a3 Bd7 16. Bd5) 14... Bd6 {[%emt 0:00:10]} 15. Rac1 {[%emt 0:04:09]} Rd8 {[%emt 0:07:17]} 16. Nd2 {[%emt 0:01:00]} Be6 {[%emt 0:05:38]} 17. b4 {[%emt 0:06:46]} Rac8 {[%emt 0:10:48]} 18. Bxe6 {[%emt 0:10:59]} Kxe6 {[%emt 0:00:03]} 19. Nb3 {[%emt 0:00:05]} b6 {[%emt 0:06:03]} 20. b5 {[%emt 0:07:10]} (20. Rhd1 {keeps more tension.} f5 21. f3 Ne7 22. Bf2) 20... Nb8 {[%emt 0:06:47]} 21. a4 {[%emt 0:00:20][%cal Ba3a4,Ba4a5][%mdl 32]} Nd7 {[%emt 0:00:13]} 22. a5 {[%emt 0:02:03]} (22. Rhd1 {seems wilder.} f5 23. f3 Rf8 24. a5) 22... Nc5 {[%emt 0:00:55]} 23. Nxc5+ {[%emt 0:01:27]} Bxc5 {[%emt 0:00:08]} 24. Bxc5 {[%emt 0:01:03]} bxc5 $11 {[%emt 0:09:58][%mdl 4096] Endgame KRR-KRR} 25. Rhd1 {[%emt 0:08:59]} Rd4 {[%emt 0:09:23]} 26. Rxd4 {[%emt 0:00:46]} exd4 {[%emt 0:00:07] KR-KR} 27. Kd3 {[%emt 0:00:29]} Kd6 {[%emt 0:01:10]} (27... f5 $11) 28. Kc4 $1 $16 {[%emt 0:04:23]} Rb8 {[%emt 0:03:08]} (28... g5 $16 {is a better defense.}) 29. f4 $1 $18 {[%emt 0:03:24]} a6 $2 {[%emt 0:14:58][%mdl 8192] [#] A mistake that costs the game.} (29... h5 $16 30. Rb1 Rd8) 30. b6 $1 {[%emt 0:00:03]} Kc6 {[%emt 0:01:55]} 31. Re1 {[%emt 0:00:24]} Rd8 {[%emt 0:01:33]} 32. Rd1 {[%emt 0:09:52]} Re8 {[%emt 0:03:23]} 33. Rb1 {[%emt 0:00:12]} Kb7 {[%emt 0:01:01] [#]} 34. Re1 {[%emt 0:00:27]} ({Not} 34. Kxc5 Rxe4 35. Rd1 Rxf4 $16) 34... Rd8 $2 {[%emt 0:03:38]} (34... Kc6 35. e5 g5) 35. Kxc5 {[%emt 0:01:33]} d3 {[%emt 0:00:06]} 36. Rd1 {[%emt 0:02:34] e5 is the strong threat.} d2 {[%emt 0:00:42]} 37. e5 {[%emt 0:01:13]} fxe5 {[%emt 0:00:37]} 38. fxe5 {[%emt 0:00:03][%cal Bf4e5,Be5e6][%mdl 32] Intending e6 and mate.} Rd3 {[%emt 0:00:37]} 39. e6 {[%emt 0:00:35] White wants to mate with e7.} Kc8 {[%emt 0:00:39]} 40. Kc6 {[%emt 0:00:21]} Rc3+ {[%emt 0:00:14]} 41. Kd6 {[%emt 0:15:10]} Rd3+ {[%emt 0:00:00]} 42. Ke7 {[%emt 0:00:00] Threatening mate with Kf7.} Rd5 {[%emt 0:00:00]} 43. g4 {[%emt 0:00:00]} (43. Ke8 $142 Kb7 44. e7) 43... Rd3 {[%emt 0:00:00]} 44. Kf7 {[%emt 0:00:00]} Rf3+ {[%emt 0:00:00]} 45. Kg7 {[%emt 0:00:00]} Re3 {[%emt 0:00:00]} 46. Kxh7 {[%emt 0:00:00]} Rxe6 {[%emt 0:00:00]} 47. Rxd2 {[%emt 0:00:00] And now h4 would win.} g5 {[%emt 0:00:00]} 48. Rc2+ {[%emt 0:00:00] White mates.} Kb7 {[%emt 0:00:00]} 49. Rc7+ {[%emt 0:00:00]} Kb8 {[%emt 0:00:00]} 50. Rc5 {[%emt 0:00:00]} Re2 {[%emt 0:00:00]} 51. Rxg5 {[%emt 0:00:00]} Rxh2+ {[%emt 0:00:00]} 52. Rh5 {[%emt 0:00:00]} Ra2 {[%emt 0:00:00]} 53. Rc5 {[%emt 0:00:00]} Rh2+ {[%emt 0:00:00]} 54. Kg7 {[%emt 0:00:00]} Kb7 {[%emt 0:00:00]} 55. g5 {[%emt 0:00:00]} Rh5 {[%emt 0:00:00]} 56. Kg6 {[%emt 0:00:00]} Rh1 {[%emt 0:00:00]} 57. Rc7+ {[%emt 0:00:00]} Kb8 {[%emt 0:00:00]} 58. Ra7 {[%emt 0:00:00][%mdl 32768] Weighted Error Value: White=0.09 (flawless) /Black=0.41. An unexpected result.} 1/2-1/2

[Event "GER-ch Youth-U16 2022"]
[Site "Willingen"]
[Date "2022.06.10"]
[Round "8.2"]
[White "Bakiev, Diyor"]
[Black "Laux, Dominik"]
[Result "1/2-1/2"]
[ECO "B51"]
[WhiteElo "2157"]
[BlackElo "2263"]
[Annotator "TA"]
[PlyCount "102"]
[EventDate "2022.06.05"]
[EventType "swiss"]
[EventRounds "9"]
[EventCountry "GER"]
[SourceTitle "playchess.com"]
[Source "ChessBase"]
[SourceQuality "1"]
[TimeControl "40/4500+30:900+30"]

{[%evp 9,102,16,9,10,10,18,19,10,12,0,0,12,15,9,6,11,23,-13,-18,-21,0,-13,0,0,0,0,0,0,0,-26,-26,-26,-28,-28,-28,-28,-26,-23,-22,-24,-24,-32,-9,-14,-12,-14,-14,-14,-9,-10,-3,-4,0,0,0,0,0,-10,-8,-3,-8,-14,-8,-15,-8,-8,-8,-8,-6,-11,-11,-11,-10,-11,-11,-12,0,0,0,0,0,0,0,0,0,0,0,0,0,0,0,0,0,0,0]} 1. e4 {[%emt 0:00:00]} c5 {[%emt 0:00:00]} 2. Nf3 {[%emt 0:00:00]} d6 {[%emt 0:00:00]} 3. Bb5+ {[%emt 0:00:00]} Nd7 {[%emt 0:00:00]} 4. O-O {[%emt 0:00:00]} a6 {[%emt 0:00:00]} 5. Bd3 {[%emt 0:00:00]} Ngf6 {[%emt 0:00:00]} 6. Re1 {[%emt 0:00:00] B51: Sicilian: Moscow Variation (3 Bb5+) without 3...Bd7.} e6 {[%emt 0:00:00]} 7. c3 {[%emt 0:00:00]} b5 {[%emt 0:00:00]} 8. Bc2 {[%emt 0:00:00]} c4 {[%emt 0:00:00]} 9. d4 {[%emt 0:00:00]} cxd3 $1 {[%emt 0:00:00]} 10. Qxd3 {[%emt 0:01:26]} Bb7 {[%emt 0:00:00]} 11. a4 {[%emt 0:16:58]} Nc5 {[%emt 0:00:00][%csl LRd3,LRe4]} 12. Qe2 {[%emt 0:01:02]} bxa4 {[%emt 0:00:00]} 13. Bxa4+ {[%emt 0:04:17]} (13. e5 {is interesting.} dxe5 14. Nxe5 Qd5 15. Qf1) 13... Nxa4 {[%emt 0:00:00]} 14. Rxa4 {[%emt 0:00:05]} Be7 {[%emt 0:00:00]} 15. Rd4 {[%emt 0:04:53] [#]} Qb8 $146 {[%emt 0:04:46]} ({Predecessor:} 15... Qc7 16. c4 e5 17. Rdd1 Nxe4 18. Nbd2 Nxd2 19. Bxd2 O-O 20. Ng5 Rac8 21. b3 Rfe8 {0-1 (49) Khalafova,N (2279)-Rakotomaharo,F (2422) Chess.com INT 2020}) 16. e5 {[%emt 0:08:50]} dxe5 {[%emt 0:06:02]} 17. Nxe5 {[%emt 0:00:38]} O-O {[%emt 0:02:53]} 18. Bg5 {[%emt 0:03:31]} Qc7 {[%emt 0:06:32] Prevents Nd7.} 19. Bxf6 {[%emt 0:18:11]} Bxf6 {[%emt 0:00:25]} 20. Rc4 {[%emt 0:02:27]} Qxe5 {[%emt 0:09:29]} (20... Qd8 {feels hotter.} 21. Rd4 Qa5 22. Rd7 Qb6) 21. Qxe5 {[%emt 0:00:09]} Bxe5 {[%emt 0:00:04]} 22. Rxe5 {[%emt 0:00:03]} Rfd8 {[%emt 0:00:16] [#] ( -> ...Rd1+)} 23. Re1 {[%emt 0:02:16] Prevents Rd1.} a5 {[%emt 0:14:48]} 24. f3 {[%emt 0:03:36]} Rab8 {[%emt 0:01:52]} 25. Rc5 {[%emt 0:03:22]} Ba8 {[%emt 0:02:54]} (25... Rd5 $5 {[%cal Rd5c5]} 26. Rc7 Ba6 $15) 26. Na3 {[%emt 0:06:21] The position is equal.} Rxb2 {[%emt 0:01:25]} 27. Nc4 {[%emt 0:01:40]} Rc2 {[%emt 0:01:58]} 28. Nxa5 {[%emt 0:00:17]} g6 {[%emt 0:06:38]} 29. Nb3 {[%emt 0:01:09] Prevents Rdd2.} Bb7 {[%emt 0:08:47]} 30. Nd4 {[%emt 0:00:33]} Rd2 {[%emt 0:00:28]} 31. Rc7 {[%emt 0:05:08]} Ba6 {[%emt 0:01:59]} 32. Ra1 {[%emt 0:02:07]} Rb8 {[%emt 0:02:04][%cal Ob8b2] [#] ...Rbb2! is the strong threat.} 33. Ra7 {[%emt 0:01:43]} Bd3 {[%emt 0:02:40] Strongly threatening ...Rbb2.} 34. Ra8 {[%emt 0:00:09]} Rxa8 {[%emt 0:00:48]} 35. Rxa8+ $11 {[%emt 0:00:01][%mdl 4096] Endgame KRB-KRN} Kg7 {[%emt 0:00:03]} 36. Rd8 {[%emt 0:00:24]} Kf6 {[%emt 0:05:02]} 37. Nb3 {[%emt 0:00:46]} Rd1+ {[%emt 0:01:24]} 38. Kf2 {[%emt 0:00:03]} Ke7 {[%emt 0:02:31]} 39. Rd4 {[%emt 0:01:43]} e5 {[%emt 0:02:42]} 40. Rb4 {[%emt 0:00:34]} h5 {[%emt 0:05:37]} 41. h4 {[%emt 0:00:00]} Kd6 {[%emt 0:00:00]} 42. Rb8 {[%emt 0:00:00]} f5 {[%emt 0:00:00]} 43. g3 {[%emt 0:00:00]} Rf1+ {[%emt 0:04:39]} 44. Kg2 {[%emt 0:02:51] aiming for Rd8+.} Rb1 {[%emt 0:02:47]} 45. Rd8+ {[%emt 0:00:37]} Ke7 {[%emt 0:00:06]} 46. Rxd3 {[%emt 0:00:10] Hoping for Nd2.} Rxb3 {[%emt 0:00:05] KR-KR} 47. Rd5 {[%emt 0:03:54]} Ke6 {[%emt 0:01:31]} 48. Rc5 {[%emt 0:00:33]} Kd6 {[%emt 0:01:10]} 49. Rc8 {[%emt 0:01:22]} Rb2+ {[%emt 0:00:19]} 50. Kf1 {[%emt 0:01:12]} Kd5 {[%emt 0:03:42]} 51. Rg8 {[%emt 0:01:47]} Rb6 {[%emt 0:02:14] An interesting draw.  Weighted Error Value: White=0.03 (flawless) /Black=0.02 (flawless)} 1/2-1/2

[Event "GER-ch Youth-U16 2022"]
[Site "Willingen"]
[Date "2022.06.10"]
[Round "8.3"]
[White "Ohler, Julius"]
[Black "Petrovskyi, Vadym"]
[Result "0-1"]
[ECO "A15"]
[WhiteElo "2011"]
[BlackElo "2330"]
[Annotator "TA"]
[PlyCount "64"]
[EventDate "2022.06.05"]
[EventType "swiss"]
[EventRounds "9"]
[EventCountry "GER"]
[SourceTitle "playchess.com"]
[Source "ChessBase"]
[SourceQuality "1"]
[TimeControl "40/4500+30:900+30"]

{[%evp 14,64,0,0,21,25,50,27,57,55,66,64,39,-6,-20,-212,-230,-213,-235,-235,-231,-235,-230,-226,-230,-229,-239,-239,-231,-249,-254,-250,-244,-382,-299,-299,-299,-293,-291,-314,-345,-305,-326,-395,-395,-780,-768,-853,-818,-935,-929,-1015,-873]} 1. c4 {[%emt 0:00:00]} Nf6 {[%emt 0:00:00]} 2. g3 {[%emt 0:00:00]} g6 {[%emt 0:00:00]} 3. Bg2 {[%emt 0:00:00]} Bg7 {[%emt 0:00:00]} 4. Nc3 {[%emt 0:00:00]} O-O {[%emt 0:00:00]} 5. d3 {[%emt 0:00:00]} d6 {[%emt 0:00:00]} 6. Nf3 {[%emt 0:00:00]} e5 {[%emt 0:00:00]} 7. e4 {[%emt 0:00:00]} Nc6 {[%emt 0:05:01]} 8. O-O {[%emt 0:00:00]} Nd7 {[%emt 0:05:52] A26: English Opening vs King's Indian with ...Nc6 and d3.} 9. Bg5 {[%emt 0:06:58]} f6 {[%emt 0:14:39]} 10. Be3 {[%emt 0:02:49]} f5 {[%emt 0:11:32] White has an edge.} 11. exf5 {[%emt 0:24:11]} gxf5 {[%emt 0:00:51]} 12. Ng5 {[%emt 0:10:18]} Nf6 {[%emt 0:02:49] [#]} 13. c5 $146 {[%emt 0:03:03] [#] Threatens to win with cxd6.} ({Predecessor:} 13. Qb3 Kh8 14. h3 h6 15. Nf3 Nh5 16. Nh4 Kh7 17. Qd1 Nf6 18. f4 Nd4 19. Ne2 Nxe2+ 20. Qxe2 {1-0 (31) Colijn,S (2075)-Baekelant,E (1970) Brasschaat 2007}) 13... d5 {[%emt 0:06:27] ...h6 is the strong threat.} 14. d4 $2 {[%emt 0:00:30]} (14. Bd2 $11 {and White stays safe.}) 14... exd4 $19 {[%emt 0:05:14]} 15. Bxd4 {[%emt 0:00:15]} Nxd4 {[%emt 0:00:04]} 16. Qxd4 {[%emt 0:00:06][%cal Rg2d5]} Ne4 $1 {[%emt 0:00:37]} 17. Qxd5+ {[%emt 0:02:12]} Qxd5 {[%emt 0:00:07]} 18. Nxd5 {[%emt 0:00:06]} Nxg5 {[%emt 0:00:07]} 19. Nxc7 {[%emt 0:00:10]} Rb8 {[%emt 0:00:31]} 20. Rad1 {[%emt 0:01:00]} Bxb2 {[%emt 0:04:55]} 21. Rb1 {[%emt 0:00:41] [#]} Be5 {[%emt 0:00:04]} 22. Nb5 {[%emt 0:03:43]} a6 {[%emt 0:02:51]} 23. Na7 {[%emt 0:02:50]} (23. Nd6 $142) 23... Ne4 {[%emt 0:01:34] Strongly threatening ...Be6.} 24. Bxe4 {[%emt 0:02:17]} fxe4 {[%emt 0:00:04]} 25. Nxc8 {[%emt 0:00:27]} Rfxc8 {[%emt 0:00:37]} ({Don't go for} 25... Rbxc8 $2 26. Rxb7 Rxc5 27. Re1 $19) 26. Rfe1 {[%emt 0:00:05]} Rxc5 {[%emt 0:01:01]} 27. Rxe4 {[%emt 0:00:06]} b5 {[%emt 0:00:33][%cal Bb7b5,Bb5b4,Bb4b3,Bb3b2][%mdl 32]} 28. a4 {[%emt 0:00:18]} Bc3 {[%emt 0:01:09]} 29. Re6 $2 {[%emt 0:00:16]} (29. axb5 axb5 30. Kg2) 29... b4 {[%emt 0:00:38] Black is clearly winning.} 30. Rxa6 {[%emt 0:00:10]} b3 {[%emt 0:00:01]} 31. Re6 {[%emt 0:00:28]} b2 {[%emt 0:00:09]} 32. Re2 {[%emt 0:00:18]} Bg7 {[%emt 0:00:21] Black took control after the opening.  Weighted Error Value: White=0.58/Black=0.07 (flawless)} 0-1

[Event "GER-ch Youth-U16 2022"]
[Site "Willingen"]
[Date "2022.06.10"]
[Round "8.4"]
[White "Sidletskyi, Ivan"]
[Black "Farokhi, Keyvan"]
[Result "1/2-1/2"]
[ECO "B53"]
[WhiteElo "2084"]
[BlackElo "2360"]
[Annotator "TA"]
[PlyCount "148"]
[EventDate "2022.06.05"]
[EventType "swiss"]
[EventRounds "9"]
[EventCountry "GER"]
[SourceTitle "playchess.com"]
[Source "ChessBase"]
[SourceQuality "1"]
[TimeControl "40/4500+30:900+30"]

{[%evp 23,148,18,52,39,73,74,136,134,124,138,149,155,130,118,110,106,109,89,116,3,6,4,7,7,0,0,0,0,0,11,24,26,26,21,124,61,68,53,46,41,45,50,47,8,15,10,8,8,21,16,125,89,90,70,76,74,73,73,71,12,12,12,78,80,145,148,135,135,191,191,191,191,191,191,191,191,191,191,191,191,191,191,191,155,191,191,191,140,426,83,850,828,739,666,29978,29979,29979,28,28,28,28,28,28,28,28,28,28,28,40,40,40,40,40,40,40,40,40,40,40,40,40,40,40,40,40,0,0]} 1. e4 {[%emt 0:00:00]} c5 {[%emt 0:00:00]} 2. Nf3 {[%emt 0:00:00]} d6 {[%emt 0:00:00]} 3. d4 {[%emt 0:00:00]} cxd4 {[%emt 0:00:00]} 4. Qxd4 {[%emt 0:00:00]} Nf6 {[%emt 0:00:00]} 5. Nc3 {[%emt 0:00:00]} Nc6 {[%emt 0:00:00]} 6. Bb5 {[%emt 0:00:00]} Bd7 {[%emt 0:00:00]} 7. Bxc6 {[%emt 0:00:00]} Bxc6 {[%emt 0:00:00]} 8. Bg5 {[%emt 0:00:00]} e6 {[%emt 0:00:00]} 9. O-O-O {[%emt 0:00:00]} Be7 {[%emt 0:00:00]} 10. Qd3 {[%emt 0:00:00]} O-O {[%emt 0:00:00]} 11. Nd4 {[%emt 0:02:19]} Qa5 {[%emt 0:00:00] 11...Rc8 is more fashionable.} 12. f4 {[%emt 0:02:07]} Rfc8 {[%emt 0:07:26][%cal Ob7b5] 12...Rfd8 is not played anymore.} 13. Kb1 {[%emt 0:06:13] B53: Sicilian: 2...d6: Lines with Qxd4.} Rab8 {[%emt 0:04:42]} 14. h4 {[%emt 0:04:48]} b5 {[%emt 0:11:16]} (14... h6 $142) 15. e5 $16 {[%emt 0:13:55] White is clearly better.} dxe5 {[%emt 0:16:16]} 16. fxe5 {[%emt 0:01:23]} b4 {[%emt 0:00:47]} 17. exf6 {[%emt 0:05:46]} bxc3 {[%emt 0:00:23]} 18. Nb3 {[%emt 0:13:00]} (18. fxe7 Rxb2+ 19. Kc1 Rxa2 20. e8=Q+ Bxe8) 18... Rxb3 {[%emt 0:04:05]} 19. axb3 {[%emt 0:07:18] [#]} (19. cxb3 gxf6 20. Bc1 Be4 $1 21. Qxe4 c2+ 22. Ka1 cxd1=B 23. Rxd1 f5 $15) 19... cxb2 $146 {[%emt 0:00:36]} ({Predecessor:} 19... Bb4 20. Bc1 Bd5 21. Qg3 g6 22. bxc3 Bxc3 23. Bb2 Bxb2 24. Kxb2 Be4 25. c4 Qb6 {1-0 (33) Strohhaeker,R (2391)-Bogner,S (2345) Neuhausen 2007}) 20. Kxb2 {[%emt 0:00:25] Really sharp!} Bb5 {[%emt 0:26:48]} 21. Qd4 {[%emt 0:07:29]} ({White has to play} 21. Qg3 $1 $16 Bb4 22. c4 (22. Bd2 $2 Rxc2+ 23. Kxc2 Qa2+ 24. Kc1 Ba3#) 22... Qa3+ 23. Kb1) 21... Bc5 $11 {[%emt 0:01:10]} 22. Qe4 {[%emt 0:12:37]} Bb4 $132 {[%emt 0:03:02][%mdl 2048] Against Bd2. ( -> ...Bc3+). Black is fighting back. A strong pair of Bishops.} 23. Rh3 {[%emt 0:01:30] aiming for Qe5.} (23. Kb1 Bc3) 23... Bc3+ {[%emt 0:01:22]} 24. Rxc3 $1 {[%emt 0:00:09]} Qxc3+ {[%emt 0:00:03]} 25. Kb1 {[%emt 0:00:31]} Bc6 {[%emt 0:00:59]} 26. Qe2 {[%emt 0:02:30]} Bd5 {[%emt 0:03:33][%cal Od5b3] Threatens to win with ...Bxb3!} 27. Rd3 {[%emt 0:01:14]} Qb4 {[%emt 0:00:27]} 28. Qd2 {[%emt 0:03:42]} Qb6 {[%emt 0:04:29]} (28... Qxd2 $11 29. Rxd2 a5) 29. fxg7 {[%emt 0:00:23]} (29. Rc3 $1 $16 {[%cal Rc3c8]} Ra8 30. Be3) 29... a5 $14 {[%emt 0:00:41]} 30. Rc3 {[%emt 0:00:55]} Ra8 {[%emt 0:00:24]} 31. Qe3 {[%emt 0:01:17]} Qxe3 {[%emt 0:01:16]} 32. Bxe3 {[%emt 0:00:51]} Kxg7 {[%emt 0:00:54][%mdl 4096] Endgame KRB-KRB} 33. Bd4+ {[%emt 0:00:08]} Kg6 {[%emt 0:00:35]} 34. Rg3+ {[%emt 0:00:30]} Kf5 {[%emt 0:00:09]} 35. Rg7 {[%emt 0:01:05][%csl LRf7,LRh7]} Ke4 {[%emt 0:00:59]} 36. Bb2 {[%emt 0:00:29]} f5 {[%emt 0:00:30]} (36... Ke3 $11) 37. c4 {[%emt 0:00:21]} Bc6 {[%emt 0:00:03]} 38. Rxh7 {[%emt 0:00:11] White is more active.} Kd3 {[%emt 0:00:20]} 39. Rg7 {[%emt 0:00:44]} f4 {[%emt 0:00:56]} 40. h5 {[%emt 0:00:47]} a4 {[%emt 0:00:45]} 41. bxa4 {[%emt 0:00:00]} (41. h6 $1 $16 {[%cal Rh6h7] Black must now prevent h7.} Be4 42. Rd7+ Ke2+ 43. Kc1) 41... Rxa4 $11 {[%emt 0:00:00]} 42. h6 {[%emt 0:02:09]} Kd2 {[%emt 0:00:00]} (42... Be4 $11 43. Be5 Ke3+ 44. Kb2 Rxc4) 43. Be5 $16 {[%emt 0:01:06] Hoping for Kb2.} (43. Bc1+ Kc3 44. Bb2+ Kb3 $11) 43... Rxc4 {[%emt 0:00:00]} ({Better is} 43... Rb4+ 44. Ka2 Kc2) 44. Kb2 $1 {[%emt 0:01:25] Strongly threatening h7.} (44. h7 $6 Be4+ 45. Kb2 Bxh7 $11) 44... Be4 {[%emt 0:00:00]} 45. Bxf4+ {[%emt 0:00:34]} Ke2 {[%emt 0:00:00]} (45... Kd3 $16 {was called for.} 46. g4 (46. h7 Bxh7 47. Rd7+ Ke2 $11) (46. Rd7+ Rd4 $16) 46... Ke2) 46. g4 $18 {[%emt 0:02:11][%cal Bg2g4,Bg4g5][%mdl 32]} (46. h7 Bxh7 47. Be5 Be4 $11) 46... Kf3 {[%emt 0:03:15]} 47. Bd6 {[%emt 0:02:50]} (47. h7 Bxh7 48. Be5 Rc5 $11) 47... Bd3 {[%emt 0:03:30]} 48. g5 {[%emt 0:00:54] And now g6 would win.} ({Weaker is} 48. h7 Bxh7 49. Rxh7 Rxg4 $11) 48... Rh4 {[%emt 0:00:15]} 49. Kc3 {[%emt 0:06:19]} Bf5 {[%emt 0:00:44] [#]} 50. Be5 $1 {[%emt 0:01:42]} Ke4 {[%emt 0:03:33] [#]} 51. Bf6 {[%emt 0:00:24]} Kf3 {[%emt 0:01:43]} 52. Rb7 {[%emt 0:01:19]} Bg6 {[%emt 0:01:07]} 53. Rb6 {[%emt 0:00:32]} Bf5 {[%emt 0:00:52]} 54. Rb8 {[%emt 0:00:30]} Bg6 {[%emt 0:03:39]} 55. Rf8 {[%emt 0:00:02]} (55. Rg8 $18 Bf5 56. Rg7) 55... Kg3 $2 {[%emt 0:01:04][%mdl 8192]} (55... Ke4 $16 {was worth a try.} 56. Ra8 Rh3+ 57. Kb4 Kf4) 56. Be7 $2 {[%emt 0:00:43]} (56. Rg8 $18 {and the rest is easy.} Bf5 57. g6 Rxh6 58. Be5+ Kf3 59. g7) 56... Kg4 $2 {[%emt 0:01:09][%mdl 8192]} (56... e5 $16) 57. Kd4 {[%emt 0:00:18]} Rh5 {[%emt 0:00:26]} 58. Ke5 {[%emt 0:00:44]} Rxg5+ {[%emt 0:01:33]} 59. Bxg5 {[%emt 0:00:11]} Kxg5 {[%emt 0:00:05] KR-KB} 60. Rg8 $2 {[%emt 0:00:58]} ({Not} 60. Rh8 Bf5 61. Kd6 (61. h7 Kg6 $11) 61... Kh5 $16) (60. Rf1 {mates} Kxh6 61. Kf6 Kh5 62. Rh1+ Kg4 63. Kxg6 Kf4 64. Kf6 Ke4 65. Kxe6) 60... Kxh6 $11 {[%emt 0:00:10]} 61. Kf6 {[%emt 0:00:18]} Bf5 {[%emt 0:00:29]} 62. Rh8+ {[%emt 0:00:50]} Bh7 {[%emt 0:00:01]} 63. Kxe6 {[%emt 0:00:46] White wants to mate with Kf6.} Kg7 {[%emt 0:00:09]} 64. Rd8 {[%emt 0:00:17]} Bg8+ {[%emt 0:00:18]} 65. Kf5 {[%emt 0:00:44]} Kh8 {[%emt 0:00:20]} 66. Rd7 {[%emt 0:00:31]} Bh7+ {[%emt 0:00:18]} 67. Kf6 {[%emt 0:00:11]} Bg8 {[%emt 0:00:13]} 68. Rd8 {[%emt 0:00:14]} Kh7 {[%emt 0:00:02]} 69. Rd2 {[%emt 0:00:59][%cal Rd2h2]} Kh8 {[%emt 0:00:07]} 70. Kg6 {[%emt 0:00:11] White threatens Rh2+ and mate.} Bh7+ {[%emt 0:00:11]} 71. Kf7 {[%emt 0:00:14] Threatening mate with Rd8+.} Bg8+ {[%emt 0:00:07]} 72. Kf6 {[%emt 0:00:19]} Bh7 {[%emt 0:00:17]} 73. Rd8+ {[%emt 0:01:11]} Bg8 {[%emt 0:00:02]} 74. Rxg8+ {[%emt 0:00:43]} Kxg8 {Black defended with fortune.  Weighted Error Value: White=0.45/Black=0.40} 1/2-1/2